[Event "*** Titled Tuesday Blitz"]
[Site "Chess.com"]
[Date "2021.03.30"]
[Round "2"]
[White "HeroString"]
[Black "CrushingKings"]
[Result "0-1"]
[WhiteElo "2242"]
[BlackElo "2450"]
[TimeControl "180+1"]
[EndTime "10:16:28 PDT"]
[Termination "CrushingKings won by resignation"]

1. d4 {[%clk 0:03:00.9]} 1... Nf6 {[%clk 0:02:59.9]} 2. c4 {[%clk 0:03:00.5]}
2... e6 {[%clk 0:03:00.1]} 3. g3 {[%clk 0:03:00.5]} 3... c5 {[%clk 0:02:59.3]}
4. d5 {[%clk 0:02:59.4]} 4... exd5 {[%clk 0:03:00.2]} 5. cxd5 {[%clk 0:03:00.3]}
5... b5 {[%clk 0:03:00.9]} 6. Bg2 {[%clk 0:02:59.1]} 6... d6 {[%clk 0:03:00.7]}
7. a4 {[%clk 0:02:58.6]} 7... b4 {[%clk 0:02:59.1]} 8. Nd2 {[%clk 0:02:54.7]}
8... g6 {[%clk 0:02:58]} 9. Nc4 {[%clk 0:02:53.1]} 9... Bg7 {[%clk 0:02:58.7]}
10. Bf4 {[%clk 0:02:52.6]} 10... Bf8 {[%clk 0:02:53.9]} 11. Nf3 {[%clk
0:02:41.6]} 11... Ba6 {[%clk 0:02:54]} 12. Rc1 {[%clk 0:02:37.2]} 12... Nh5
{[%clk 0:02:51.4]} 13. Bg5 {[%clk 0:02:32.6]} 13... Be7 {[%clk 0:02:51]} 14. Qd2
{[%clk 0:02:20.5]} 14... O-O {[%clk 0:02:49.5]} 15. O-O {[%clk 0:02:16.4]} 15...
Re8 {[%clk 0:02:49.4]} 16. Rfe1 {[%clk 0:02:13.5]} 16... Bxc4 {[%clk 0:02:38.9]}
17. Rxc4 {[%clk 0:02:13.1]} 17... Nd7 {[%clk 0:02:39.6]} 18. Rh4 {[%clk
0:02:03.9]} 18... Bxg5 {[%clk 0:02:35.7]} 19. Nxg5 {[%clk 0:02:04.1]} 19... Qf6
{[%clk 0:02:28.2]} 20. Ne4 {[%clk 0:01:33.6]} 20... Qe7 {[%clk 0:02:23.7]} 21.
Qh6 {[%clk 0:01:27.5]} 21... Ndf6 {[%clk 0:02:23.1]} 22. Nxf6+ {[%clk
0:00:57.3]} 22... Nxf6 {[%clk 0:02:24]} 23. e4 {[%clk 0:00:54]} 23... Qf8 {[%clk
0:02:21.4]} 24. Qf4 {[%clk 0:00:50.5]} 24... Nxd5 {[%clk 0:02:18.3]} 25. Qd2
{[%clk 0:00:37.7]} 25... Nb6 {[%clk 0:02:15.7]} 26. a5 {[%clk 0:00:34]} 26...
Nc4 {[%clk 0:02:14.8]} 27. Qd5 {[%clk 0:00:34.1]} 27... Nxb2 {[%clk 0:02:01.3]}
28. f4 {[%clk 0:00:25.8]} 28... Na4 {[%clk 0:02:00]} 29. f5 {[%clk 0:00:25.1]}
29... Nc3 {[%clk 0:01:59.6]} 30. Qc4 {[%clk 0:00:23.1]} 30... d5 {[%clk
0:01:57.7]} 31. Qf1 {[%clk 0:00:15.1]} 31... dxe4 {[%clk 0:01:54.9]} 32. Bxe4
{[%clk 0:00:16]} 32... Rad8 {[%clk 0:01:52]} 33. fxg6 {[%clk 0:00:15.7]} 33...
fxg6 {[%clk 0:01:50.2]} 34. Qc4+ {[%clk 0:00:14.3]} 34... Kg7 {[%clk 0:01:46.5]}
35. Rf1 {[%clk 0:00:06.3]} 35... Qe7 {[%clk 0:01:44]} 36. Rhf4 {[%clk
0:00:03.9]} 36... Rf8 {[%clk 0:01:30.5]} 37. Bg2 {[%clk 0:00:04.1]} 37... Ne2+
{[%clk 0:01:28.8]} 38. Kh1 {[%clk 0:00:04]} 38... Nxf4 {[%clk 0:01:29.1]} 39.
gxf4 {[%clk 0:00:03.7]} 39... Rd4 {[%clk 0:01:28.6]} 40. Qb5 {[%clk 0:00:02.4]}
40... Rdxf4 {[%clk 0:01:27.2]} 41. a6 {[%clk 0:00:03.3]} 41... Rxf1+ {[%clk
0:01:25.2]} 42. Bxf1 {[%clk 0:00:04.2]} 42... Qe4+ {[%clk 0:01:25.4]} 43. Bg2
{[%clk 0:00:05.1]} 43... Qb1+ {[%clk 0:01:25.4]} 0-1

[Event "*** Titled Tuesday Blitz"]
[Site "Chess.com"]
[Date "2021.03.30"]
[Round "2"]
[White "abykhovsky"]
[Black "dachessmandan"]
[Result "1-0"]
[WhiteElo "2719"]
[BlackElo "2493"]
[TimeControl "180+1"]
[EndTime "10:16:30 PDT"]
[Termination "abykhovsky won by checkmate"]

1. d4 {[%clk 0:03:00.9]} 1... Nf6 {[%clk 0:02:59.2]} 2. Nf3 {[%clk 0:03:00.6]}
2... e6 {[%clk 0:02:59.5]} 3. Bg5 {[%clk 0:02:59.8]} 3... d5 {[%clk 0:02:59]} 4.
c4 {[%clk 0:02:57.7]} 4... Be7 {[%clk 0:02:57.2]} 5. Nc3 {[%clk 0:02:54.1]} 5...
dxc4 {[%clk 0:02:56.3]} 6. e4 {[%clk 0:02:50.9]} 6... O-O {[%clk 0:02:55.3]} 7.
e5 {[%clk 0:02:48.3]} 7... Nd5 {[%clk 0:02:51.2]} 8. Bxe7 {[%clk 0:02:46]} 8...
Qxe7 {[%clk 0:02:45.1]} 9. Bxc4 {[%clk 0:02:45.6]} 9... Nb6 {[%clk 0:02:24.9]}
10. Bd3 {[%clk 0:02:43.1]} 10... Nc6 {[%clk 0:02:24.7]} 11. a3 {[%clk
0:02:40.5]} 11... Rd8 {[%clk 0:02:21.9]} 12. Qd2 {[%clk 0:02:32.7]} 12... Na5
{[%clk 0:02:00.8]} 13. Rd1 {[%clk 0:02:31.6]} 13... Nac4 {[%clk 0:01:54.3]} 14.
Qe2 {[%clk 0:02:26.4]} 14... Na5 {[%clk 0:01:47.1]} 15. h4 {[%clk 0:02:25.4]}
15... h6 {[%clk 0:01:46.4]} 16. Qe4 {[%clk 0:02:24.2]} 16... f5 {[%clk
0:01:16.3]} 17. exf6 {[%clk 0:02:23.6]} 17... gxf6 {[%clk 0:01:08]} 18. Rh3
{[%clk 0:02:19.6]} 18... f5 {[%clk 0:01:01.8]} 19. Qf4 {[%clk 0:01:33.3]} 19...
Kh7 {[%clk 0:00:45.1]} 20. Kf1 {[%clk 0:01:29.9]} 20... Nd5 {[%clk 0:00:28.6]}
21. Nxd5 {[%clk 0:01:18.1]} 21... Rxd5 {[%clk 0:00:29.5]} 22. Re1 {[%clk
0:01:18.4]} 22... Qg7 {[%clk 0:00:24.9]} 23. Rg3 {[%clk 0:01:17.7]} 23... Qf7
{[%clk 0:00:22.3]} 24. Ne5 {[%clk 0:01:17.8]} 24... Qf6 {[%clk 0:00:19.6]} 25.
h5 {[%clk 0:01:04.4]} 25... Bd7 {[%clk 0:00:19.1]} 26. Rg6 {[%clk 0:01:04.5]}
26... Qf8 {[%clk 0:00:19]} 27. Re3 {[%clk 0:01:01.3]} 27... Rd8 {[%clk 0:00:18]}
28. Nxd7 {[%clk 0:00:58.6]} 28... R8xd7 {[%clk 0:00:16.8]} 29. Rexe6 {[%clk
0:00:59.2]} 29... Rxd4 {[%clk 0:00:16.1]} 30. Rxh6+ {[%clk 0:00:59.4]} 30... Kg8
{[%clk 0:00:14.9]} 31. Qe5 {[%clk 0:00:54.5]} 31... Qxh6 {[%clk 0:00:06.7]} 32.
Rxh6 {[%clk 0:00:51.2]} 32... Rxd3 {[%clk 0:00:07.2]} 33. Qh8+ {[%clk
0:00:50.2]} 33... Kf7 {[%clk 0:00:07.4]} 34. Qf6+ {[%clk 0:00:51.1]} 34... Kg8
{[%clk 0:00:07.4]} 35. Rh8# {[%clk 0:00:52]} 1-0

[Event "*** Titled Tuesday Blitz"]
[Site "Chess.com"]
[Date "2021.03.30"]
[Round "2"]
[White "kekic76"]
[Black "JiiHart"]
[Result "1-0"]
[WhiteElo "2392"]
[BlackElo "2038"]
[TimeControl "180+1"]
[EndTime "10:16:30 PDT"]
[Termination "kekic76 won by resignation"]

1. e4 {[%clk 0:03:00.9]} 1... c6 {[%clk 0:02:59.3]} 2. Nc3 {[%clk 0:02:59.8]}
2... g6 {[%clk 0:02:56.8]} 3. Nf3 {[%clk 0:03:00.7]} 3... Bg7 {[%clk 0:02:55.5]}
4. h3 {[%clk 0:03:00.7]} 4... d5 {[%clk 0:02:54.2]} 5. d3 {[%clk 0:03:00.8]}
5... dxe4 {[%clk 0:02:47.9]} 6. Nxe4 {[%clk 0:02:59.8]} 6... Nf6 {[%clk
0:02:46.9]} 7. Be2 {[%clk 0:02:59.7]} 7... Nbd7 {[%clk 0:02:46.3]} 8. O-O {[%clk
0:02:58.9]} 8... O-O {[%clk 0:02:42.3]} 9. Re1 {[%clk 0:02:57.5]} 9... Nxe4
{[%clk 0:02:41.5]} 10. dxe4 {[%clk 0:02:57.4]} 10... Nf6 {[%clk 0:02:41.5]} 11.
Bd3 {[%clk 0:02:56.8]} 11... h6 {[%clk 0:02:12.6]} 12. Qe2 {[%clk 0:02:56]}
12... Be6 {[%clk 0:02:09.5]} 13. Be3 {[%clk 0:02:48]} 13... b6 {[%clk
0:01:46.5]} 14. c3 {[%clk 0:02:46.4]} 14... c5 {[%clk 0:01:42.1]} 15. a4 {[%clk
0:02:33.3]} 15... Qc7 {[%clk 0:01:41.4]} 16. Nd2 {[%clk 0:02:27.6]} 16... Rfd8
{[%clk 0:01:37.2]} 17. Bc4 {[%clk 0:02:26.8]} 17... Bxc4 {[%clk 0:01:35.9]} 18.
Qxc4 {[%clk 0:02:23.8]} 18... Rd7 {[%clk 0:01:21.7]} 19. a5 {[%clk 0:02:06.6]}
19... Rad8 {[%clk 0:01:11]} 20. Nf3 {[%clk 0:02:02.4]} 20... b5 {[%clk
0:00:43.7]} 21. Qxc5 {[%clk 0:01:47.2]} 21... Nxe4 {[%clk 0:00:43.5]} 22. Qxc7
{[%clk 0:01:46]} 22... Rxc7 {[%clk 0:00:43]} 23. Bxa7 {[%clk 0:01:43.4]} 23...
Rxa7 {[%clk 0:00:28.1]} 24. Rxe4 {[%clk 0:01:42.9]} 24... Rda8 {[%clk
0:00:17.4]} 25. b4 {[%clk 0:01:20.6]} 25... Bxc3 {[%clk 0:00:16.2]} 26. Rc1
{[%clk 0:01:21]} 26... Rc7 {[%clk 0:00:12.7]} 27. Nd4 {[%clk 0:01:06.7]} 27...
Rb8 {[%clk 0:00:12.6]} 28. Nb3 {[%clk 0:01:01.7]} 28... e5 {[%clk 0:00:09.8]}
29. Nc5 {[%clk 0:00:58]} 29... Bxb4 {[%clk 0:00:08]} 30. Rxb4 {[%clk 0:00:56.5]}
30... Rbc8 {[%clk 0:00:07.2]} 31. Rxb5 {[%clk 0:00:56.5]} 1-0

[Event "*** Titled Tuesday Blitz"]
[Site "Chess.com"]
[Date "2021.03.30"]
[Round "2"]
[White "NicoChasin"]
[Black "novocane"]
[Result "1-0"]
[WhiteElo "2617"]
[BlackElo "2233"]
[TimeControl "180+1"]
[EndTime "10:16:34 PDT"]
[Termination "NicoChasin won by resignation"]

1. d4 {[%clk 0:02:59.4]} 1... Nf6 {[%clk 0:02:59.8]} 2. c4 {[%clk 0:02:59.4]}
2... e6 {[%clk 0:03:00]} 3. Nf3 {[%clk 0:02:59.4]} 3... b6 {[%clk 0:02:59.9]} 4.
g3 {[%clk 0:02:54.9]} 4... Ba6 {[%clk 0:02:58.4]} 5. b3 {[%clk 0:02:52.9]} 5...
Bb4+ {[%clk 0:02:58]} 6. Bd2 {[%clk 0:02:52.9]} 6... Be7 {[%clk 0:02:57.9]} 7.
Bg2 {[%clk 0:02:53.4]} 7... O-O {[%clk 0:02:57.8]} 8. O-O {[%clk 0:02:53.3]}
8... d5 {[%clk 0:02:57.2]} 9. Bc3 {[%clk 0:02:50.2]} 9... Nbd7 {[%clk
0:02:52.3]} 10. Nbd2 {[%clk 0:02:49.5]} 10... c5 {[%clk 0:02:45.3]} 11. Ne5
{[%clk 0:02:45.8]} 11... Bb7 {[%clk 0:02:23.9]} 12. dxc5 {[%clk 0:02:28.8]}
12... bxc5 {[%clk 0:02:18.9]} 13. cxd5 {[%clk 0:02:24.9]} 13... Nxd5 {[%clk
0:02:07]} 14. Bb2 {[%clk 0:02:12.2]} 14... Bf6 {[%clk 0:02:01.6]} 15. Ndc4
{[%clk 0:02:11.3]} 15... Nxe5 {[%clk 0:01:43.3]} 16. Nxe5 {[%clk 0:02:10.9]}
16... Qc7 {[%clk 0:01:39.9]} 17. Nc4 {[%clk 0:02:04.1]} 17... Nc3 {[%clk
0:01:26.1]} 18. Qc2 {[%clk 0:01:59.3]} 18... Bxg2 {[%clk 0:01:16.6]} 19. Kxg2
{[%clk 0:02:00.2]} 19... Qc6+ {[%clk 0:01:08.7]} 20. f3 {[%clk 0:01:58.7]} 20...
Nd5 {[%clk 0:01:04.1]} 21. Bxf6 {[%clk 0:01:58.3]} 21... Nxf6 {[%clk 0:01:05]}
22. e4 {[%clk 0:01:58.1]} 22... Rfd8 {[%clk 0:01:03.7]} 23. Rad1 {[%clk
0:01:57.6]} 23... h5 {[%clk 0:01:00.4]} 24. Rf2 {[%clk 0:01:52.5]} 24... h4
{[%clk 0:01:00.1]} 25. Rfd2 {[%clk 0:01:52]} 25... Rxd2+ {[%clk 0:00:45.7]} 26.
Rxd2 {[%clk 0:01:52.9]} 26... Qc7 {[%clk 0:00:27.2]} 27. Qd1 {[%clk 0:01:44.8]}
27... hxg3 {[%clk 0:00:25.5]} 28. hxg3 {[%clk 0:01:44.1]} 28... Nh5 {[%clk
0:00:25.6]} 29. e5 {[%clk 0:01:43.8]} 29... g6 {[%clk 0:00:18.5]} 30. Rd7 {[%clk
0:01:43.3]} 30... Qc6 {[%clk 0:00:14.5]} 31. Qd6 {[%clk 0:01:42.4]} 31... Qxd6
{[%clk 0:00:14.4]} 32. Nxd6 {[%clk 0:01:41.8]} 32... f5 {[%clk 0:00:10.6]} 33.
Rc7 {[%clk 0:01:29.4]} 33... a5 {[%clk 0:00:06.6]} 34. Rxc5 {[%clk 0:01:25.7]}
34... a4 {[%clk 0:00:07]} 35. b4 {[%clk 0:01:25.8]} 35... a3 {[%clk 0:00:07.7]}
36. b5 {[%clk 0:01:24.4]} 36... Rb8 {[%clk 0:00:07.4]} 37. Rc8+ {[%clk 0:01:24]}
37... Rxc8 {[%clk 0:00:07.8]} 38. Nxc8 {[%clk 0:01:24.9]} 1-0

[Event "*** Titled Tuesday Blitz"]
[Site "Chess.com"]
[Date "2021.03.30"]
[Round "2"]
[White "zurzan"]
[Black "comsac"]
[Result "0-1"]
[WhiteElo "1953"]
[BlackElo "2376"]
[TimeControl "180+1"]
[EndTime "10:16:35 PDT"]
[Termination "comsac won on time"]

1. f4 {[%clk 0:03:00.9]} 1... d5 {[%clk 0:02:58.7]} 2. Nf3 {[%clk 0:03:00.1]}
2... Nc6 {[%clk 0:02:58.8]} 3. g3 {[%clk 0:02:59.8]} 3... g6 {[%clk 0:02:56.7]}
4. Bg2 {[%clk 0:02:59.9]} 4... Bg7 {[%clk 0:02:57.3]} 5. O-O {[%clk 0:03:00.6]}
5... Nf6 {[%clk 0:02:55.5]} 6. d3 {[%clk 0:03:01.5]} 6... Bf5 {[%clk 0:02:54.9]}
7. c3 {[%clk 0:03:02.4]} 7... Qd7 {[%clk 0:02:54.5]} 8. a4 {[%clk 0:02:59.9]}
8... Bh3 {[%clk 0:02:54.2]} 9. b4 {[%clk 0:02:59.1]} 9... Bxg2 {[%clk
0:02:48.5]} 10. Kxg2 {[%clk 0:03:00]} 10... O-O {[%clk 0:02:45.6]} 11. b5 {[%clk
0:02:59.5]} 11... Nd8 {[%clk 0:02:41.6]} 12. Ne5 {[%clk 0:02:59.2]} 12... Qd6
{[%clk 0:02:38.8]} 13. Ba3 {[%clk 0:02:58.3]} 13... Qe6 {[%clk 0:02:38.5]} 14.
d4 {[%clk 0:02:49.5]} 14... Ne4 {[%clk 0:02:35.5]} 15. Qd3 {[%clk 0:02:39.1]}
15... f6 {[%clk 0:02:33.7]} 16. Nf3 {[%clk 0:02:35.7]} 16... Nf7 {[%clk
0:02:33.5]} 17. Nbd2 {[%clk 0:02:32.1]} 17... Nfd6 {[%clk 0:02:33.2]} 18. Bxd6
{[%clk 0:02:28.8]} 18... exd6 {[%clk 0:02:29.3]} 19. Rac1 {[%clk 0:02:16.6]}
19... f5 {[%clk 0:02:19.9]} 20. c4 {[%clk 0:01:34.4]} 20... Rfe8 {[%clk
0:02:17.8]} 21. cxd5 {[%clk 0:01:33.2]} 21... Qxd5 {[%clk 0:02:18.7]} 22. Rxc7
{[%clk 0:01:26.3]} 22... Nxd2 {[%clk 0:02:18.6]} 23. Qxd2 {[%clk 0:01:25.3]}
23... Re4 {[%clk 0:02:12.3]} 24. e3 {[%clk 0:01:13.5]} 24... Rae8 {[%clk
0:02:10.6]} 25. Re1 {[%clk 0:00:33.4]} 25... Rxd4 {[%clk 0:02:10.4]} 26. exd4
{[%clk 0:00:32.4]} 26... Re4 {[%clk 0:02:04.6]} 27. Kh3 {[%clk 0:00:20.1]} 27...
Qe6 {[%clk 0:01:54.4]} 28. Rxe4 {[%clk 0:00:18.7]} 28... fxe4+ {[%clk
0:01:55.3]} 29. g4 {[%clk 0:00:16.2]} 29... exf3 {[%clk 0:01:54.5]} 30. Rc8+
{[%clk 0:00:15.3]} 30... Qxc8 {[%clk 0:01:54.2]} 31. Qe3 {[%clk 0:00:15]} 31...
h5 {[%clk 0:01:53.2]} 32. Qxf3 {[%clk 0:00:14.7]} 32... hxg4+ {[%clk 0:01:53.6]}
33. Qxg4 {[%clk 0:00:15.5]} 33... Qxg4+ {[%clk 0:01:53.9]} 34. Kxg4 {[%clk
0:00:16.4]} 34... b6 {[%clk 0:01:52.9]} 35. Kg5 {[%clk 0:00:17.3]} 35... Kf7
{[%clk 0:01:53.3]} 36. d5 {[%clk 0:00:16.5]} 36... Bf6+ {[%clk 0:01:51.7]} 37.
Kg4 {[%clk 0:00:16.4]} 37... Bd4 {[%clk 0:01:51.6]} 38. f5 {[%clk 0:00:17.3]}
38... Kf6 {[%clk 0:01:51.2]} 39. fxg6 {[%clk 0:00:17.2]} 39... Kxg6 {[%clk
0:01:52.1]} 40. h4 {[%clk 0:00:17.5]} 40... Be5 {[%clk 0:01:52.4]} 41. h5+
{[%clk 0:00:18.4]} 41... Kh6 {[%clk 0:01:52.6]} 42. Kh4 {[%clk 0:00:16.1]} 42...
Bf6+ {[%clk 0:01:49]} 43. Kg4 {[%clk 0:00:17]} 43... Bg5 {[%clk 0:01:48.6]} 44.
Kf5 {[%clk 0:00:13.6]} 44... Kxh5 {[%clk 0:01:49.5]} 45. Ke6 {[%clk 0:00:14.2]}
45... Bf4 {[%clk 0:01:49.9]} 46. Kd7 {[%clk 0:00:15.1]} 46... Kg5 {[%clk
0:01:49.8]} 47. Kc6 {[%clk 0:00:16]} 47... Kf5 {[%clk 0:01:50.4]} 48. Kb7 {[%clk
0:00:16.9]} 48... Ke5 {[%clk 0:01:50.1]} 49. Kxa7 {[%clk 0:00:17.8]} 49... Be3
{[%clk 0:01:50.2]} 50. Kb7 {[%clk 0:00:14.5]} 50... Kxd5 {[%clk 0:01:50.3]} 51.
Kc7 {[%clk 0:00:14.2]} 51... Bc5 {[%clk 0:01:49.4]} 52. Kd7 {[%clk 0:00:02.7]}
52... Kc4 {[%clk 0:01:48.2]} 53. Kc6 {[%clk 0:00:02.6]} 53... d5 {[%clk
0:01:47.6]} 54. a5 {[%clk 0:00:02.8]} 54... bxa5 {[%clk 0:01:48.5]} 55. b6
{[%clk 0:00:02.1]} 55... Bxb6 {[%clk 0:01:48.9]} 56. Kxb6 {[%clk 0:00:02.5]}
56... a4 {[%clk 0:01:49.6]} 57. Kc6 {[%clk 0:00:02.1]} 57... a3 {[%clk
0:01:50.5]} 0-1

[Event "*** Titled Tuesday Blitz"]
[Site "Chess.com"]
[Date "2021.03.30"]
[Round "2"]
[White "iwanyu"]
[Black "wadsy27"]
[Result "1-0"]
[WhiteElo "2865"]
[BlackElo "2563"]
[TimeControl "180+1"]
[EndTime "10:16:36 PDT"]
[Termination "iwanyu won by resignation"]

1. Nf3 {[%clk 0:03:00.9]} 1... Nf6 {[%clk 0:02:58.5]} 2. g3 {[%clk 0:03:01.2]}
2... d5 {[%clk 0:02:56.7]} 3. Bg2 {[%clk 0:03:00.9]} 3... c6 {[%clk 0:02:56.9]}
4. O-O {[%clk 0:03:00]} 4... Bf5 {[%clk 0:02:55.6]} 5. c4 {[%clk 0:03:00.4]}
5... h6 {[%clk 0:02:52.6]} 6. cxd5 {[%clk 0:02:52.6]} 6... cxd5 {[%clk
0:02:51.5]} 7. Qb3 {[%clk 0:02:52.9]} 7... Qb6 {[%clk 0:02:45.4]} 8. d3 {[%clk
0:02:50.3]} 8... e6 {[%clk 0:02:38.6]} 9. Be3 {[%clk 0:02:48.5]} 9... Qxb3
{[%clk 0:02:38.1]} 10. axb3 {[%clk 0:02:49.4]} 10... Nc6 {[%clk 0:02:38]} 11.
Nc3 {[%clk 0:02:48.6]} 11... a6 {[%clk 0:02:24.4]} 12. Nb5 {[%clk 0:02:44.9]}
12... Kd7 {[%clk 0:02:21.5]} 13. Rfc1 {[%clk 0:02:24.2]} 13... Be7 {[%clk
0:02:16.4]} 14. Nbd4 {[%clk 0:02:24.1]} 14... Nxd4 {[%clk 0:02:14.2]} 15. Ne5+
{[%clk 0:02:23.9]} 15... Ke8 {[%clk 0:02:06.1]} 16. Bxd4 {[%clk 0:02:24]} 16...
Bd6 {[%clk 0:02:00.8]} 17. e4 {[%clk 0:02:07.1]} 17... dxe4 {[%clk 0:01:58.2]}
18. Nc4 {[%clk 0:02:06.8]} 18... Rd8 {[%clk 0:01:50.2]} 19. Bb6 {[%clk 0:01:44]}
19... Ke7 {[%clk 0:01:40.3]} 20. Bxd8+ {[%clk 0:01:41.4]} 20... Rxd8 {[%clk
0:01:40.5]} 21. dxe4 {[%clk 0:01:37.2]} 21... Nxe4 {[%clk 0:01:36.3]} 22. Nxd6
{[%clk 0:01:28.8]} 22... Nxd6 {[%clk 0:01:30.9]} 23. Rc7+ {[%clk 0:01:28.9]}
23... Rd7 {[%clk 0:01:30.5]} 24. Rac1 {[%clk 0:01:28.1]} 24... Rxc7 {[%clk
0:01:21.4]} 25. Rxc7+ {[%clk 0:01:29]} 25... Kd8 {[%clk 0:01:21.5]} 26. Rc1
{[%clk 0:01:29.2]} 26... Kd7 {[%clk 0:01:15.8]} 27. f4 {[%clk 0:01:28.5]} 27...
f6 {[%clk 0:01:02.9]} 28. Kf2 {[%clk 0:01:28.1]} 28... g5 {[%clk 0:01:01.2]} 29.
Ke3 {[%clk 0:01:25.3]} 29... Bg6 {[%clk 0:00:53.4]} 30. fxg5 {[%clk 0:01:15.8]}
30... fxg5 {[%clk 0:00:52.1]} 31. Kd4 {[%clk 0:01:13.5]} 31... Bf5 {[%clk
0:00:31.7]} 32. Ke5 {[%clk 0:01:11.1]} 32... Nf7+ {[%clk 0:00:28.5]} 33. Kf6
{[%clk 0:01:08.6]} 33... Nd6 {[%clk 0:00:28.3]} 34. Kg7 {[%clk 0:01:06.1]} 34...
h5 {[%clk 0:00:25.8]} 35. Kh6 {[%clk 0:01:06.4]} 35... g4 {[%clk 0:00:21.7]} 36.
Kxh5 {[%clk 0:01:06]} 36... e5 {[%clk 0:00:22.1]} 37. Kg5 {[%clk 0:01:05]} 37...
e4 {[%clk 0:00:17.6]} 38. Rd1 {[%clk 0:01:00.8]} 38... Ke6 {[%clk 0:00:16.4]}
39. Rxd6+ {[%clk 0:00:59.7]} 1-0

[Event "*** Titled Tuesday Blitz"]
[Site "Chess.com"]
[Date "2021.03.30"]
[Round "2"]
[White "SGchess01"]
[Black "Isajevsky_Anton"]
[Result "0-1"]
[WhiteElo "2728"]
[BlackElo "2527"]
[TimeControl "180+1"]
[EndTime "10:16:36 PDT"]
[Termination "Isajevsky_Anton won by resignation"]

1. e4 {[%clk 0:03:00.9]} 1... c5 {[%clk 0:02:53.1]} 2. Nf3 {[%clk 0:03:00.2]}
2... d6 {[%clk 0:02:53]} 3. d4 {[%clk 0:03:00.6]} 3... cxd4 {[%clk 0:02:53.3]}
4. Nxd4 {[%clk 0:03:01.5]} 4... Nf6 {[%clk 0:02:53.2]} 5. Nc3 {[%clk 0:03:02.2]}
5... a6 {[%clk 0:02:53.2]} 6. h3 {[%clk 0:03:02.4]} 6... e5 {[%clk 0:02:51]} 7.
Nde2 {[%clk 0:03:02.1]} 7... h5 {[%clk 0:02:50.5]} 8. Bg5 {[%clk 0:03:01.3]}
8... Be6 {[%clk 0:02:50.3]} 9. Bxf6 {[%clk 0:03:01.2]} 9... Qxf6 {[%clk
0:02:49.9]} 10. Nd5 {[%clk 0:03:01.8]} 10... Qd8 {[%clk 0:02:50.1]} 11. Qd3
{[%clk 0:03:02.3]} 11... g6 {[%clk 0:02:49.9]} 12. O-O-O {[%clk 0:03:02.7]}
12... Bh6+ {[%clk 0:02:49.7]} 13. Kb1 {[%clk 0:03:02.9]} 13... Nc6 {[%clk
0:02:38.4]} 14. h4 {[%clk 0:02:44.1]} 14... O-O {[%clk 0:02:35.9]} 15. g3 {[%clk
0:02:41.8]} 15... Ne7 {[%clk 0:02:24.5]} 16. Ne3 {[%clk 0:02:39.8]} 16... Qa5
{[%clk 0:02:04.1]} 17. Nc3 {[%clk 0:02:36.9]} 17... Rac8 {[%clk 0:02:00.9]} 18.
a3 {[%clk 0:02:36.3]} 18... Bxe3 {[%clk 0:01:51.3]} 19. Qxe3 {[%clk 0:02:35.2]}
19... d5 {[%clk 0:01:44.6]} 20. exd5 {[%clk 0:02:31.6]} 20... Nxd5 {[%clk
0:01:44.3]} 21. Nxd5 {[%clk 0:02:31.8]} 21... Bxd5 {[%clk 0:01:44.4]} 22. b4
{[%clk 0:02:31.1]} 22... Qc7 {[%clk 0:01:36.4]} 23. Rxd5 {[%clk 0:02:30.5]}
23... Qxc2+ {[%clk 0:01:36.2]} 24. Ka1 {[%clk 0:02:31]} 24... Rfd8 {[%clk
0:00:52.9]} 25. Rxd8+ {[%clk 0:00:59]} 25... Rxd8 {[%clk 0:00:52.5]} 26. Bc4
{[%clk 0:00:59.9]} 26... Qxc4 {[%clk 0:00:45.5]} 27. Rc1 {[%clk 0:00:59.5]}
27... Qb5 {[%clk 0:00:36.9]} 28. Qc5 {[%clk 0:00:55.3]} 28... Qa4 {[%clk
0:00:28.5]} 29. Qc3 {[%clk 0:00:52.8]} 29... e4 {[%clk 0:00:28.2]} 30. Qb2
{[%clk 0:00:48.7]} 30... Kh7 {[%clk 0:00:24.5]} 31. Ka2 {[%clk 0:00:48.8]} 31...
Qb5 {[%clk 0:00:20.1]} 32. Qf6 {[%clk 0:00:46.6]} 32... Rd2+ {[%clk 0:00:17.9]}
33. Ka1 {[%clk 0:00:47.1]} 33... Qd5 {[%clk 0:00:16.6]} 0-1

[Event "*** Titled Tuesday Blitz"]
[Site "Chess.com"]
[Date "2021.03.30"]
[Round "2"]
[White "annacramling"]
[Black "PowerThinking2650"]
[Result "0-1"]
[WhiteElo "2074"]
[BlackElo "2398"]
[TimeControl "180+1"]
[EndTime "10:16:39 PDT"]
[Termination "PowerThinking2650 won on time"]

1. d4 {[%clk 0:03:00.9]} 1... Nf6 {[%clk 0:02:59]} 2. c4 {[%clk 0:03:01.3]} 2...
g6 {[%clk 0:02:58.7]} 3. Nc3 {[%clk 0:03:01.5]} 3... Bg7 {[%clk 0:02:58.6]} 4.
e4 {[%clk 0:03:01.7]} 4... d6 {[%clk 0:02:59]} 5. h3 {[%clk 0:03:00.6]} 5... O-O
{[%clk 0:02:58.8]} 6. Bg5 {[%clk 0:03:00.3]} 6... c5 {[%clk 0:02:46.4]} 7. d5
{[%clk 0:03:00.4]} 7... b5 {[%clk 0:02:44.9]} 8. cxb5 {[%clk 0:02:59.3]} 8... a6
{[%clk 0:02:44.8]} 9. a4 {[%clk 0:02:53.3]} 9... Qa5 {[%clk 0:02:42.8]} 10. Bd2
{[%clk 0:02:47.7]} 10... Qb4 {[%clk 0:02:35.1]} 11. Bd3 {[%clk 0:02:27.8]} 11...
e6 {[%clk 0:02:22.8]} 12. Nge2 {[%clk 0:02:03.8]} 12... exd5 {[%clk 0:02:17.3]}
13. exd5 {[%clk 0:02:04.7]} 13... Re8 {[%clk 0:01:59]} 14. Ne4 {[%clk
0:01:19.1]} 14... Qxb2 {[%clk 0:01:42.2]} 15. Bc3 {[%clk 0:01:18.9]} 15... Nxe4
{[%clk 0:01:42.2]} 16. Bxb2 {[%clk 0:01:18.1]} 16... Bxb2 {[%clk 0:01:41.9]} 17.
Bxe4 {[%clk 0:01:04.5]} 17... Bxa1 {[%clk 0:01:29.1]} 18. Qxa1 {[%clk
0:00:53.2]} 18... Rxe4 {[%clk 0:01:28.7]} 19. b6 {[%clk 0:00:53.2]} 19... Nd7
{[%clk 0:01:23]} 20. a5 {[%clk 0:00:45]} 20... c4 {[%clk 0:01:05.3]} 21. f3
{[%clk 0:00:43.3]} 21... Re5 {[%clk 0:01:01.4]} 22. Qd4 {[%clk 0:00:25.7]} 22...
Nc5 {[%clk 0:00:57.4]} 23. Qxc4 {[%clk 0:00:16.4]} 23... Bd7 {[%clk 0:00:53.8]}
24. Kf2 {[%clk 0:00:13.3]} 24... Bb5 {[%clk 0:00:53.5]} 25. Qc3 {[%clk
0:00:04.1]} 25... Rxe2+ {[%clk 0:00:52.9]} 26. Kg3 {[%clk 0:00:04.6]} 26... Rae8
{[%clk 0:00:51]} 27. h4 {[%clk 0:00:03.8]} 27... h5 {[%clk 0:00:50.6]} 28. Rd1
{[%clk 0:00:03.3]} 28... R8e3 {[%clk 0:00:45.8]} 29. Qf6 {[%clk 0:00:02.3]}
29... Ne4+ {[%clk 0:00:45.7]} 0-1